Cogmind - Beta 17 @@@ ROGUE MODE // 2026.07.01 @ 04:37:05 Player: Lolterzard Result: Destroyed by P-80 Master with Gamma Rifle Performance ------------- Evolutions (7) 3500 Regions Visited (14) 2800 Robots Destroyed (170) 850 Value Destroyed (5388) 5388 Prototype IDs (9) 180 Alien Tech Used (0) 0 Bonus (0) 0 TOTAL SCORE: 12718 Bonus ------- None Cogmind --------- Core Integrity 0/1300 Matter 175/300 Energy 87/100 System Corruption 12% Temperature Cool (4) Movement Treading (170) Location -3/Research Parts ------- > --- POWER (2) -------- (None) > --- PROPULSION (9) --- Armored Heavy Treads > --- UTILITY (6) ------ (None) > --- WEAPON (4) ------- (None) > --- INVENTORY (5) ---- Advanced Point Defense System Peak State ------------ > --- POWER ------------ Cooled Fission Core Micro Fission Core > --- PROPULSION ------- Improved Gravmag System Gravmag Array Antigrav System Antigrav System Antigrav System Antigrav System > --- UTILITY ---------- Advanced Heat Sink Advanced ECM Suite > --- WEAPON ----------- KE Penetrator Advanced Assault Cannon Enhanced Gauss Cannon > --- INVENTORY -------- Improved Deuterium Engine Focal Shield Improved Shield Generator [Rating: 78] Favorites ----------- Power Ion Engine Engine Ion Engine Power Core Fission Core Reactor Light Particle Reactor Propulsion Light Treads Treads Light Treads Wheel Wheel Hover Unit Antigrav System Flight Unit Cooled Nuclear Pulse Thruster Utility High-capacity Storage Unit Device Seismic Detector Storage High-capacity Storage Unit Protection Utility Shielding Weapon Heavy Assault Rifle Energy Gun Medium Laser Ballistic Gun Heavy Assault Rifle Ballistic Cannon Light Cannon Launcher Mini Grenade Launcher Piercing Weapon Enhanced Force Lance Build | -11 -10 -9 -8 -7 -6 -6 -6 -5 -5 -5 -4 -4 -4 -3 ------- Run | Yrd Mat Mat Mat Fac Fac Was Fac Fac Upp Upp Fac Upp Upp Res Slots Evolved 14 | . . 2 2 2 2 . . 2 . . 2 . . 2 Power 1 | . . . . . 1 . . . . . . . . . Propulsion 7 | . . 1 1 2 1 . . 1 . . . . . 1 Utility 4 | . . 1 1 . . . . . . . 2 . . . Weapon 2 | . . . . . . . . 1 . . . . . 1 Parts Attached 138 | 7 5 17 24 21 17 . 7 17 7 1 2 1 . 12 Power 20 | 1 . 3 1 3 3 . 2 3 1 . . . . 3 Engine 14 | 1 . 3 1 2 1 . 2 1 1 . . . . 2 Core 4 | . . . . 1 1 . . 2 . . . . . . Reactor 2 | . . . . . 1 . . . . . . . . 1 Propulsion 47 | 2 . 9 10 5 6 . 1 9 . . . . . 5 Treads 22 | 2 . 9 5 4 1 . . . . . . . . 1 Leg . | . . . . . . . . . . . . . . . Wheel 4 | . . . 1 . . . . 2 . . . . . 1 Hover 20 | . . . 4 1 5 . 1 7 . . . . . 2 Flight 1 | . . . . . . . . . . . . . . 1 Utility 39 | 2 1 4 9 7 4 . 1 1 5 . 2 1 . 2 Device 16 | 1 . . 1 5 1 . . 1 3 . 2 . . 2 Storage 3 | 1 1 . . . 1 . . . . . . . . . Processor . | . . . . . . . . . . . . . . . Hackware . | . . . . . . . . . . . . . . . Protection 20 | . . 4 8 2 2 . 1 . 2 . . 1 . . Artifact . | . . . . . . . . . . . . . . . Weapon 32 | 2 4 1 4 6 4 . 3 4 1 1 . . . 2 Energy Gun 2 | 2 . . . . . . . . . . . . . . Energy Cannon . | . . . . . . . . . . . . . . . Ballistic Gun 17 | . 4 1 2 4 2 . 2 . 1 1 . . . . Ballistic Cannon 9 | . . . 1 1 1 . 1 4 . . . . . 1 Launcher 3 | . . . 1 1 1 . . . . . . . . . Special Weapon . | . . . . . . . . . . . . . . . Impact Weapon . | . . . . . . . . . . . . . . . Slashing Weapon . | . . . . . . . . . . . . . . . Piercing Weapon 1 | . . . . . . . . . . . . . . 1 Special Melee Weapon . | . . . . . . . . . . . . . . . Unidentified Prototypes 9 | . . . 2 1 2 . 1 1 . . 1 . . 1 Parts Lost 81 | . . 5 17 16 3 1 9 6 7 . 2 7 . 8 Power 12 | . . 2 2 2 . 1 . 1 2 . 1 . . 1 Propulsion 29 | . . . 6 4 . . 6 3 4 . . 2 . 4 Utility 22 | . . 2 6 6 1 . 2 . . . 1 2 . 2 Weapon 18 | . . 1 3 4 2 . 1 2 1 . . 3 . 1 Highest Loss Streak 8 | . . 2 6 5 2 1 3 2 3 . 1 8 . 4 To Critical Strikes 2 | . . . 1 . . . . . . . . . . 1 Average Backups 11 | 1 5 16 15 16 10 10 8 4 3 4 3 4 5 3 Power . | . 1 . 1 . 1 2 1 . . . . 1 2 1 Propulsion . | . . 2 1 . . . . . . . . . 1 . Utility 4 | . 2 3 3 8 5 5 5 3 2 3 3 2 2 1 Weapon 5 | . 2 8 9 7 3 3 1 . . 1 . . . . Tool/Special . | . . . . . . . . . . . . . . . Unused Backups 11 | . . 1 2 . 3 . 2 1 . . . . . 2 Power 1 | . . . . . . . . 1 . . . . . . Propulsion 2 | . . . 1 . . . . . . . . . . 1 Utility 5 | . . . . . 2 . 2 . . . . . . 1 Weapon 3 | . . 1 1 . 1 . . . . . . . . . Tool/Special . | . . . . . . . . . . . . . . . Average Slot Usage (%) 67 | . 99 97 83 65 75 76 68 28 61 51 51 4 . 6 Engine 6 | . 14 10 7 5 7 3 4 1 1 . . . . . Core 1 | . . . . . 3 6 5 3 7 5 1 . . . Treads 12 | . 28 31 16 12 3 . . . . . . . . . Hover 7 | . . . 7 1 21 33 21 12 23 11 10 . . . Device 7 | . 14 2 3 6 12 13 11 2 10 17 19 1 . . Storage 6 | . 14 11 9 7 6 6 5 . . . . . . . Protection 10 | . . 19 20 13 5 6 5 . 3 5 5 . . . Ballistic Gun 10 | . 17 21 12 7 12 6 5 . 3 7 10 . . . Ballistic Cannon 3 | . . . 4 7 . . 4 4 8 2 5 . . . Peak Build Rating 78 | 7 10 16 27 24 53 53 56 68 78 52 58 46 2 32 Average Rating 23 | 5 7 13 19 18 43 46 40 30 60 46 50 5 2 12 On Entrance 25 | . 7 10 16 18 19 53 41 1 68 43 52 46 2 2 Avg Prop Armor Cover (%) 8 | 22 . 7 7 3 12 . 2 13 10 . 3 4 . 43 Naked Turns 673 | . . . . . . . 23 40 . . . 471 27 112 Heaviest Build 78 | 15 52 60 67 65 78 50 53 45 46 35 35 30 . 14 Greatest Support 85 | 40 40 63 85 68 60 54 63 63 74 22 22 11 3 60 Greatest Overweight (x) 20 | 4 1 2 20 18 2 . 6 2 2 1 2 2 . 4 Average Overweight (x) . | 1 . . 1 1 . . . . . 1 1 . . . Largest Inventory Capacity 20 | 8 20 20 20 20 20 10 10 5 5 5 5 5 5 5 Average Capacity 14 | 7 13 20 20 20 11 10 9 5 5 5 5 5 5 5 Most Carried 20 | 2 12 20 20 20 17 10 10 5 5 5 4 5 5 5 Average Carried 11 | 1 5 16 15 16 10 10 8 4 3 4 3 4 5 3 Final Capacity 20 | 8 20 20 20 20 10 10 5 5 5 5 5 5 5 5 Final Carried 20 | 2 12 20 17 14 10 10 4 4 5 3 4 5 5 1 Class Distribution -------------------- 70% | Mutant 18% | Scavenger-Mutant 5% | Scavenger-Tank 4% | Scavenger-Sprinter Dominant Class ---------------- Mutant | -10/Materials Mutant | -9/Materials Mutant | -8/Materials Mutant | -7/Factory Scavenger-Mutant | -6/Factory Scavenger-Sprinter | -6/Waste Mutant | -6/Factory Mutant | -5/Factory Scavenger-Mutant | -5/Upper Caves Scavenger-Mutant | -5/Upper Caves Scavenger-Tank | -4/Factory Mutant | -4/Upper Caves Mutant | -4/Upper Caves Mutant | -3/Research Resources | -11 -10 -9 -8 -7 -6 -6 -6 -5 -5 -5 -4 -4 -4 -3 ----------- Run | Yrd Mat Mat Mat Fac Fac Was Fac Fac Upp Upp Fac Upp Upp Res Matter Collected 5690 | 270 82 749 1405 1012 628 . 137 673 483 31 27 66 . 127 Remotely 1114 | . . . . 349 628 . 137 . . . . . . . Salvage Created 6338 | 126 436 1193 1496 1349 587 . 137 583 180 . 77 20 . 154 Parts 333 | 7 29 67 83 62 29 . 10 26 3 . 3 . . 14 Haulers Intercepted 14 | . 2 5 5 . 1 . . 1 . . . . . . Recyclers Shooed 12 | . 2 . 4 2 1 . 1 2 . . . . . . Parts Field Recycled . | . . . . . . . . . . . . . . . Retrieved Matter . | . . . . . . . . . . . . . . . Parts Self-Destructed 13 | . . . . . . . . . 9 . . 4 . . Prevented . | . . . . . . . . . . . . . . . Parts Restored . | . . . . . . . . . . . . . . . Kills | -11 -10 -9 -8 -7 -6 -6 -6 -5 -5 -5 -4 -4 -4 -3 ------- Run | Yrd Mat Mat Mat Fac Fac Was Fac Fac Upp Upp Fac Upp Upp Res Combat Hostiles Destroyed 116 | . 12 22 21 26 11 . 6 8 6 . 1 1 . 2 Melee 2 | . . . . . . . . . . . . . . 2 Guns 80 | . 12 22 17 13 9 . 3 . 2 . 1 1 . . Cannons 30 | . . . 4 9 2 . 3 8 4 . . . . . AOE 4 | . . . . 4 . . . . . . . . . . Classes Destroyed 15 | 2 3 4 3 3 . . . . . . . . . . Worker 9 | . . 1 1 2 1 . . 2 . . . . . 2 Builder 7 | . . . 3 2 . . . 2 . . . . . . Tunneler 2 | 2 . . . . . . . . . . . . . . Hauler 14 | . 2 5 5 . 1 . . 1 . . . . . . Recycler 11 | 1 . 1 3 4 1 . . 1 . . . . . . Mechanic 1 | . . . . 1 . . . . . . . . . . Watcher 10 | . . 1 2 5 . . . 2 . . . . . . Swarmer 30 | . 7 4 . 7 4 . 3 1 3 . . 1 . . Cutter 1 | . . . 1 . . . . . . . . . . . Grunt 51 | . 5 13 14 13 3 . . 2 1 . . . . . Brawler 2 | . . . . 1 . . . 1 . . . . . . Duelist 4 | . . 1 1 1 1 . . . . . . . . . Sentry 14 | . . 4 3 1 1 . 2 1 1 . 1 . . . Hunter 5 | . . . 2 1 . . 1 . 1 . . . . . Programmer 9 | . . . . 2 2 . . 3 . . . . . 2 Best Kill Streak 8 | 2 3 7 3 8 4 . 4 8 5 . 1 1 . 4 Combat Bots Only 6 | . 3 6 2 3 4 . 4 4 5 . 1 1 . 2 Max Kills in Single Turn 4 | 1 1 1 1 4 1 . 1 2 2 . 1 1 . 1 Gunslinging . | . . . . . . . . . . . . . . . Exploded 2 | . . . . 2 . . . . . . . . . . Melee 1 | . . . . . . . . . . . . . . 1 Uniques/NPCs Destroyed . | . . . . . . . . . . . . . . . Combat | -11 -10 -9 -8 -7 -6 -6 -6 -5 -5 -5 -4 -4 -4 -3 -------- Run | Yrd Mat Mat Mat Fac Fac Was Fac Fac Upp Upp Fac Upp Upp Res Hostile Shots Fired 1332 | . 54 160 169 183 72 1 102 112 88 . 16 117 4 254 Missed 466 | . 19 64 42 56 19 . 32 36 41 . 5 45 2 105 Hits 866 | . 35 96 127 127 53 1 70 76 47 . 11 72 2 149 Melee 33 | . . 1 7 18 4 1 . 2 . . . . . . Projectile 833 | . 35 95 120 109 49 . 70 74 47 . 11 72 2 149 AOE 3 | . . . 1 . . . . 2 . . . . . . Critical Strikes 40 | . . 2 7 3 1 . 2 5 2 . . 5 . 13 Actively Blocked 1 | . . . . 1 . . . . . . . . . . Part Disruptions 1 | . . . . . . . . 1 . . . . . . Damage Taken 14894 | . 351 1128 2129 2337 1141 32 773 1754 895 . 223 1419 39 2673 Core 4248 | . 71 135 251 436 68 . 150 746 124 . 38 870 39 1320 Absorbed by Shields 111 | . . . 84 . . . . . . . . . . 27 Redirected to Shielding 94 | . . 16 28 50 . . . . . . . . . . Ignored by Resistances 223 | . . . . . 36 9 113 . . . . . . 65 Regen/Repaired (Parts) 480 | . . 120 97 110 153 . . . . . . . . . Core Remaining (%) 54 | 100 71 66 54 37 . . 74 . . 13 . . 17 . Volleys Fired 585 | 5 56 90 160 118 43 . 30 40 20 . 2 9 . 12 Largest 3 | 2 2 2 2 2 2 . 2 2 3 . 3 3 . 1 Hottest 120 | 90 90 46 55 63 68 . 65 94 120 . 108 108 . 54 Shots Fired 1116 | 10 113 179 305 222 86 . 56 49 55 1 6 22 . 12 Gun 795 | 10 113 179 218 145 68 . 29 . 15 1 4 13 . . Cannon 313 | . . . 87 74 17 . 23 49 40 . 2 9 . 12 Launcher 8 | . . . . 3 1 . 4 . . . . . . . Special . | . . . . . . . . . . . . . . . Kinetic 1064 | . 79 179 305 219 85 . 52 49 55 1 6 22 . 12 Thermal 22 | 5 17 . . . . . . . . . . . . . Explosive 8 | . . . . 3 1 . 4 . . . . . . . Electromagnetic 22 | 5 17 . . . . . . . . . . . . . Robot Hit Streak 22 | 2 8 16 22 15 8 . 8 18 4 . 5 6 . 1 Robot Miss Streak 14 | 1 6 4 7 6 9 . 14 5 5 . . 3 . 4 Penetration Max 1 | . . . . . . . . 1 1 . . . . . Secondary Targets 8 | . 2 4 1 1 . . . . . . . . . . Max Gunslinging Chain 1 | . 1 1 1 1 . . . . . . . . . . Shots Hit Robots 698 | 6 65 123 183 126 64 . 46 34 25 . 4 10 . 12 Core Hits 359 | 4 28 42 71 74 52 . 47 19 12 . 4 1 . 5 Critical Kills . | . . . . . . . . . . . . . . . Critical Parts Destroyed 3 | . 1 1 1 . . . . . . . . . . . Critical Strikes 18 | 1 1 1 2 . 1 . . 6 5 . . . . 1 Destroy 3 | . 1 1 1 . . . . . . . . . . . Blast 14 | . . . 1 . 1 . . 6 5 . . . . 1 Corrupt 1 | 1 . . . . . . . . . . . . . . Melee Attacks 12 | . . . . . . . . . . . . . . 12 Impact . | . . . . . . . . . . . . . . . Slashing . | . . . . . . . . . . . . . . . Piercing 12 | . . . . . . . . . . . . . . 12 Sneak Attacks 2 | . . . . . . . . . . . . . . 2 Combat Hostiles . | . . . . . . . . . . . . . . . Follow-up Attacks . | . . . . . . . . . . . . . . . Damage Inflicted 14186 | 79 715 1847 3078 3220 1328 . 714 1576 745 . 86 191 . 607 Guns 7600 | 79 632 1844 2240 1374 806 . 350 . 167 . 55 53 . . Cannons 4339 | . . . 825 714 406 . 295 1240 578 . 31 138 . 112 Explosions 1663 | . 82 . . 1117 116 . 36 312 . . . . . . Melee 495 | . . . . . . . . . . . . . . 495 Ramming 89 | . 1 3 13 15 . . 33 24 . . . . . . Kinetic 11600 | . 372 1844 3065 2088 1212 . 645 1240 745 . 86 191 . 112 Thermal 893 | 39 185 . . 483 . . . 186 . . . . . . Explosive 786 | . . . . 634 116 . 36 . . . . . . . Electromagnetic 323 | 40 157 . . . . . . 126 . . . . . . Impact . | . . . . . . . . . . . . . . . Slashing . | . . . . . . . . . . . . . . . Piercing 495 | . . . . . . . . . . . . . . 495 Highest Corruption 12 | . 3 2 12 2 1 9 9 8 8 8 2 2 2 12 Average Corruption 4 | . 2 2 11 1 1 5 9 3 8 8 2 2 2 4 Corruption Purged . | . . . . . . . . . . . . . . . Corruption Blocked . | . . . . . . . . . . . . . . . Effects 130 | . 7 1 44 11 8 1 18 9 17 4 2 6 . 2 Message Errors 26 | . 1 1 8 3 2 . 5 1 2 . 1 2 . . Matter Fused 30 | . 2 . 8 2 2 . 8 2 4 1 . . . 1 Heat Flow Errors 14 | . 1 . 6 . 2 . 1 . 1 . . 2 . 1 Energy Discharges 13 | . . . 5 1 2 . 2 1 . 1 . 1 . . Parts Rejected 3 | . . . . . . 1 . . 2 . . . . . Parts Fused 3 | . . . 1 . . . . . 2 . . . . . Data Loss (minor) 18 | . 1 . 9 . . . 2 1 3 1 1 . . . Data Loss (major) 6 | . 1 . 1 2 . . . 1 . . . 1 . . Misfires 8 | . 1 . 2 2 . . . 1 1 1 . . . . Alerts 2 | . . . . 1 . . . . 1 . . . . . Misdirections 1 | . . . 1 . . . . . . . . . . . Weapon Failures 6 | . . . 3 . . . . 2 1 . . . . . Overload Shots . | . . . . . . . . . . . . . . . Overflow Damage 441 | . . . 12 242 . . . 120 36 . . 10 . 21 Projectiles 94 | . . . 12 . . . . 36 36 . . 10 . . Explosions 326 | . . . . 242 . . . 84 . . . . . . Melee 21 | . . . . . . . . . . . . . . 21 Knockbacks 54 | . . . 10 13 9 . 7 10 4 . . 1 . . Impact . | . . . . . . . . . . . . . . . Kinetic 52 | . . . 10 12 8 . 7 10 4 . . 1 . . Secondary 2 | . . . . 1 1 . . . . . . . . . Self-Inflicted Damage 474 | . 21 . . 68 196 . 15 174 . . . . . . Shots 9 | . 1 . . 3 2 . . 3 . . . . . . Rammed 22 | . 1 1 4 5 . . 8 3 . . . . . . Targets Rammed 22 | . 1 1 4 5 . . 8 3 . . . . . . Kicked . | . . . . . . . . . . . . . . . Crushed . | . . . . . . . . . . . . . . . Highest Temperature 389 | 90 192 34 301 7 389 . 321 45 253 . . 250 . 244 Average Temperature 69 | 36 42 10 48 3 143 . 113 17 35 . . 66 . 133 Received Heat Transfer 2874 | . 87 525 863 333 258 . 57 225 99 . 30 367 21 9 Effects 7 | . . . 3 . 4 . . . . . . . . . Shutdowns 2 | . . . . . 2 . . . . . . . . . Energy Bleed 2 | . . . 1 . 1 . . . . . . . . . Interference 2 | . . . 2 . . . . . . . . . . . Damage (minor) 1 | . . . . . 1 . . . . . . . . . Siege Activations . | . . . . . . . . . . . . . . . Martial Activations . | . . . . . . . . . . . . . . . Shielding Activations . | . . . . . . . . . . . . . . . Robots Disrupted . | . . . . . . . . . . . . . . . Combat Hostiles . | . . . . . . . . . . . . . . . Robots Corrupted . | . . . . . . . . . . . . . . . Combat Hostiles . | . . . . . . . . . . . . . . . Parts Fried 2 | . . . . . . . . 2 . . . . . . Impact Corruptions . | . . . . . . . . . . . . . . . Robots Melted . | . . . . . . . . . . . . . . . Combat Hostiles . | . . . . . . . . . . . . . . . Parts Melted 1 | . . . . . . . . 1 . . . . . . Heat Transferred 1007 | 111 396 . . 300 . . . 200 . . . . . . Parts Sabotaged . | . . . . . . . . . . . . . . . Parts Stolen . | . . . . . . . . . . . . . . . Parts Stripped . | . . . . . . . . . . . . . . . Power Chain Reactions 3 | . 2 . . . . . . 1 . . . . . . Alert | -11 -10 -9 -8 -7 -6 -6 -6 -5 -5 -5 -4 -4 -4 -3 ------- Run | Yrd Mat Mat Mat Fac Fac Was Fac Fac Upp Upp Fac Upp Upp Res Maximum Alert Level 1 | . . 1 . 1 . . . 1 . . . . . . Low Security (%) 87 | 100 100 72 100 76 100 100 100 45 . . 100 . . 100 Level 1 12 | . . 27 . 23 . . . 54 . . . . . . Level 2 . | . . . . . . . . . . . . . . . Level 3 . | . . . . . . . . . . . . . . . Level 4 . | . . . . . . . . . . . . . . . Level 5 . | . . . . . . . . . . . . . . . High Security . | . . . . . . . . . . . . . . . Max Security . | . . . . . . . . . . . . . . . Peak Influence 385 | 10 135 262 166 385 189 59 128 267 . . 45 . . 105 Initial 173 | . . 33 88 64 173 59 27 . . . 45 . . 27 Average 99 | 1 52 115 84 151 99 49 57 179 . . 10 . . 15 Influence Increases 4699 | 15 374 645 711 942 395 . 231 549 360 . 32 290 . 155 Destroy 0b10 Robot/C 2320 | . 240 440 420 520 220 . 120 160 120 . 20 20 . 40 Destroy 0b10 Robot/NC 270 | 15 10 40 70 70 15 . . 40 . . . . . 10 Destroy Leader 598 | . 64 122 114 130 52 . 40 46 . . 10 . . 20 Successful Hack 33 | . 5 8 7 6 7 . . . . . . . . . Disable Machine 240 | . . 15 15 135 30 . 15 30 . . . . . . Destroy Structure 233 | . 10 5 10 51 26 . 11 108 . . 2 . . 10 Partial Spotted 120 | . . . . . 15 . 30 60 . . . . . 15 Lose Combat Pursuer 885 | . 45 15 75 30 30 . 15 105 240 . . 270 . 60 Influence Decreases 4652 | 15 295 514 779 729 580 131 270 306 414 116 105 226 23 149 Entered New Map 732 | . . 46 122 78 182 111 12 . 90 36 28 . 13 14 Time Decay 3265 | 15 295 418 516 491 368 10 190 246 254 80 67 216 10 89 Lost Part 655 | . . 50 141 160 30 10 68 60 70 . 10 10 . 46 Squads Dispatched 35 | . 2 4 6 11 3 . 2 4 . . . . . 3 Investigation 5 | . . 1 . 2 1 . . 1 . . . . . . Extermination 6 | . . . . 2 2 . 1 1 . . . . . . Reinforcement 18 | . 2 3 3 4 . . 1 2 . . . . . 3 Assault . | . . . . . . . . . . . . . . . Garrison 6 | . . . 3 3 . . . . . . . . . . Intercept . | . . . . . . . . . . . . . . . Searches Triggered . | . . . . . . . . . . . . . . . Construction Impeded 3 | . . 1 . 1 . . . 1 . . . . . . Haulers Reinforced 1 | . . . . 1 . . . . . . . . . . Active Scanning Responses . | . . . . . . . . . . . . . . . Cargo Convoy Interrupts . | . . . . . . . . . . . . . . . Stealth | -11 -10 -9 -8 -7 -6 -6 -6 -5 -5 -5 -4 -4 -4 -3 --------- Run | Yrd Mat Mat Mat Fac Fac Was Fac Fac Upp Upp Fac Upp Upp Res Distress Signals 18 | . 1 3 7 4 1 . . 1 . . 1 . . . Communications Jammed . | . . . . . . . . . . . . . . . Distress Signals . | . . . . . . . . . . . . . . . Times Spotted 295 | . 22 28 45 43 13 6 12 41 43 3 3 18 3 15 Peak Tracking Total 9 | . 4 8 6 5 5 6 5 6 9 3 2 8 4 6 Tactical Retreats 42 | . 2 1 3 2 1 . 1 9 12 . . 9 . 2 ECM-based Alert Blocks 52 | . . . . . . . . 24 28 . . . . . Traps | -11 -10 -9 -8 -7 -6 -6 -6 -5 -5 -5 -4 -4 -4 -3 ------- Run | Yrd Mat Mat Mat Fac Fac Was Fac Fac Upp Upp Fac Upp Upp Res Traps Triggered 12 | . 2 1 4 . 2 . . 3 . . . . . . Indirectly . | . . . . . . . . . . . . . . . Trap Hack Attempts . | . . . . . . . . . . . . . . . Triggered . | . . . . . . . . . . . . . . . Disarmed 1 | . . . . 1 . . . . . . . . . . Reprogrammed 6 | . . 6 . . . . . . . . . . . . Reused . | . . . . . . . . . . . . . . . Traps Extracted . | . . . . . . . . . . . . . . . Installed . | . . . . . . . . . . . . . . . Triggered . | . . . . . . . . . . . . . . . Machines | -11 -10 -9 -8 -7 -6 -6 -6 -5 -5 -5 -4 -4 -4 -3 ---------- Run | Yrd Mat Mat Mat Fac Fac Was Fac Fac Upp Upp Fac Upp Upp Res Machines Disabled 16 | . . 1 1 9 2 . 1 2 . . . . . . Max in Single Turn 4 | . . 1 1 4 2 . 1 1 . . . . . . Machines Repaired . | . . . . . . . . . . . . . . . Machines Dismantled . | . . . . . . . . . . . . . . . Machines Sabotaged . | . . . . . . . . . . . . . . . Overloaded Fab Kills . | . . . . . . . . . . . . . . . Hacking | -11 -10 -9 -8 -7 -6 -6 -6 -5 -5 -5 -4 -4 -4 -3 --------- Run | Yrd Mat Mat Mat Fac Fac Was Fac Fac Upp Upp Fac Upp Upp Res Machines Accessed 18 | . 3 3 4 3 3 . 1 1 . . . . . . Terminals 9 | . 3 2 2 1 1 . . . . . . . . . Fabricators 2 | . . . . . 1 . 1 . . . . . . . Repair Stations 4 | . . 1 1 1 1 . . . . . . . . . Recycling Units 1 | . . . . . . . . 1 . . . . . . Scanalyzers 1 | . . . 1 . . . . . . . . . . . Garrison Access 1 | . . . . 1 . . . . . . . . . . Total Hacks 52 | . 6 11 10 11 9 . 3 2 . . . . . . Successful 24 | . 1 6 5 5 6 . . 1 . . . . . . Failed 27 | . 5 5 4 6 3 . 3 1 . . . . . . Catastrophic 4 | . 2 . . 1 . . 1 . . . . . . . Database Lockouts 1 | . . . 1 . . . . . . . . . . . Manual 8 | . 5 3 . . . . . . . . . . . . Terminals 19 | . 6 6 4 2 1 . . . . . . . . . Fabricators 5 | . . . . . 2 . 3 . . . . . . . Repair Stations 18 | . . 5 3 4 6 . . . . . . . . . Recycling Units 2 | . . . . . . . . 2 . . . . . . Scanalyzers 3 | . . . 3 . . . . . . . . . . . Garrison Access 5 | . . . . 5 . . . . . . . . . . Terminal Hacks 7 | . 1 3 1 2 . . . . . . . . . . Locate Traps 2 | . . 1 . 1 . . . . . . . . . . Disarm Traps 1 | . . . . 1 . . . . . . . . . . Reprogram Traps 1 | . . 1 . . . . . . . . . . . . Transport Status 1 | . . . 1 . . . . . . . . . . . Hauler Manifests 1 | . 1 . . . . . . . . . . . . . Registered Components 1 | . . 1 . . . . . . . . . . . . Fabricator Hacks . | . . . . . . . . . . . . . . . Repair Station Hacks 14 | . . 3 2 3 6 . . . . . . . . . Scan Component 8 | . . 2 1 2 3 . . . . . . . . . Repair 6 | . . 1 1 1 3 . . . . . . . . . Recycling Unit Hacks 1 | . . . . . . . . 1 . . . . . . Retrieve Components 1 | . . . . . . . . 1 . . . . . . Scanalyzer 2 | . . . 2 . . . . . . . . . . . Retrieve Study 2 | . . . 2 . . . . . . . . . . . Garrison Access Hacks . | . . . . . . . . . . . . . . . Unauthorized Hacks . | . . . . . . . . . . . . . . . Terminals . | . . . . . . . . . . . . . . . Fabricators . | . . . . . . . . . . . . . . . Repair Stations . | . . . . . . . . . . . . . . . Recycling Units . | . . . . . . . . . . . . . . . Scanalyzers . | . . . . . . . . . . . . . . . Garrison Access . | . . . . . . . . . . . . . . . Data Cores Recovered . | . . . . . . . . . . . . . . . Used . | . . . . . . . . . . . . . . . Hacking Detections 15 | . 3 3 3 3 2 . 1 . . . . . . . Full Trace Events 6 | . 1 1 1 2 1 . . . . . . . . . Feedback Events . | . . . . . . . . . . . . . . . Feedback Blocked . | . . . . . . . . . . . . . . . Robot Schematics Acquired . | . . . . . . . . . . . . . . . Robots Built . | . . . . . . . . . . . . . . . Authchips . | . . . . . . . . . . . . . . . Time . | . . . . . . . . . . . . . . . Total Robot Build Rating . | . . . . . . . . . . . . . . . Part Schematics Acquired . | . . . . . . . . . . . . . . . Parts Built . | . . . . . . . . . . . . . . . Authchips . | . . . . . . . . . . . . . . . Time . | . . . . . . . . . . . . . . . Total Part Build Rating . | . . . . . . . . . . . . . . . Part Studies Acquired 2 | . . . 2 . . . . . . . . . . . Parts Repaired 6 | . . 1 1 1 3 . . . . . . . . . Time 294 | . . 26 32 26 210 . . . . . . . . . Parts Recycled . | . . . . . . . . . . . . . . . Recycled Matter . | . . . . . . . . . . . . . . . Retrieved Matter . | . . . . . . . . . . . . . . . Retrieved Components 3 | . . . . . . . . 3 . . . . . . Parts Scanalyzed . | . . . . . . . . . . . . . . . Part Schematics Acquired . | . . . . . . . . . . . . . . . Parts Damaged . | . . . . . . . . . . . . . . . Bothacking | -11 -10 -9 -8 -7 -6 -6 -6 -5 -5 -5 -4 -4 -4 -3 ------------ Run | Yrd Mat Mat Mat Fac Fac Was Fac Fac Upp Upp Fac Upp Upp Res Used RIF Installer . | . . . . . . . . . . . . . . . Robots Hacked . | . . . . . . . . . . . . . . . Non-combat . | . . . . . . . . . . . . . . . Combat . | . . . . . . . . . . . . . . . Robot Hacks Applied . | . . . . . . . . . . . . . . . Relay Couplers Released . | . . . . . . . . . . . . . . . Fabnet Peak Effective % . | . . . . . . . . . . . . . . . Robots Rewired . | . . . . . . . . . . . . . . . Allies Hacked . | . . . . . . . . . . . . . . . Hacks Repelled . | . . . . . . . . . . . . . . . Allies | -11 -10 -9 -8 -7 -6 -6 -6 -5 -5 -5 -4 -4 -4 -3 -------- Run | Yrd Mat Mat Mat Fac Fac Was Fac Fac Upp Upp Fac Upp Upp Res Total Allies . | . . . . . . . . . . . . . . . Largest Group . | . . . . . . . . . . . . . . . Highest-Rated Group . | . . . . . . . . . . . . . . . Highest-Rated Ally . | . . . . . . . . . . . . . . . Total Orders . | . . . . . . . . . . . . . . . Ally Attacks . | . . . . . . . . . . . . . . . Total Damage . | . . . . . . . . . . . . . . . Kills . | . . . . . . . . . . . . . . . Allies Corrupted . | . . . . . . . . . . . . . . . Allies Melted . | . . . . . . . . . . . . . . . Intel | -11 -10 -9 -8 -7 -6 -6 -6 -5 -5 -5 -4 -4 -4 -3 ------- Run | Yrd Mat Mat Mat Fac Fac Was Fac Fac Upp Upp Fac Upp Upp Res Active Infowar (turns) 3100 | . 918 241 . 1337 . . . 296 308 . . . . . Seismic 2496 | . 918 241 . 1337 . . . . . . . . . . ECM 604 | . . . . . . . . 296 308 . . . . . Robot Analysis Total . | . . . . . . . . . . . . . . . Derelict Logs Recovered 4 | . . . . . . . . . 2 . . 2 . . Drone Launches . | . . . . . . . . . . . . . . . Drone Recoveries . | . . . . . . . . . . . . . . . Exploration | -11 -10 -9 -8 -7 -6 -6 -6 -5 -5 -5 -4 -4 -4 -3 ------------- Run | Yrd Mat Mat Mat Fac Fac Was Fac Fac Upp Upp Fac Upp Upp Res Turns Passed 9784 | 120 918 1180 1803 1930 852 31 439 522 555 161 310 525 27 411 Spaces Moved 6005 | 59 362 443 616 641 529 103 287 640 663 101 183 952 53 373 Core 1382 | 30 . . 4 12 . . 49 89 . . . 936 53 209 Treads 2008 | 29 362 443 469 629 63 . . . . . . . . 13 Legs . | . . . . . . . . . . . . . . . Wheels 46 | . . . 31 . . . . 15 . . . . . . Hover 2418 | . . . 112 . 466 103 238 536 663 101 183 16 . . Flight 151 | . . . . . . . . . . . . . . 151 Fastest Speed 21 | 50 160 160 100 160 24 24 21 40 40 116 116 50 50 35 Average Speed 116 | 159 194 189 191 233 64 24 81 54 69 116 158 51 50 85 Slowest Speed 1050 | 250 240 320 1050 950 200 24 410 150 160 116 180 180 50 250 Overloaded Moves 737 | . . . . . 466 103 168 . . . . . . . Propulsion Burnouts 1 | . . . . . . . 1 . . . . . . . Robots Hopped 2 | . . . . . . . . . . . . . . 2 Potential Cave-ins . | . . . . . . . . . . . . . . . Cave-ins Triggered . | . . . . . . . . . . . . . . . Exploration Rate (%) 35 | 4 73 43 42 15 16 91 8 24 77 11 6 98 13 14 Regions Visited 14 Branch Regions 4 Pre-discovered Areas 2 | . . . . . . . . . 1 . . 1 . . Known Exits Taken 1 | . . . . . . . . . . . . . 1 . Unknown Exits Taken 11 | 1 1 1 1 1 . . 1 1 1 1 1 1 . . Scrap Searched 5 | . . . . . . . . . 3 . . 2 . . Spaces Dug . | . . . . . . . . . . . . . . . Terrain Destroyed 171 | . 7 . . 49 23 . 15 52 19 . . 1 . 5 Melee . | . . . . . . . . . . . . . . . Projectile 44 | . . . . . 1 . . 18 19 . . 1 . 5 AOE 127 | . 7 . . 49 22 . 15 34 . . . . . . Terrain Rammed . | . . . . . . . . . . . . . . . Walls Destroyed . | . . . . . . . . . . . . . . . Machines Disabled . | . . . . . . . . . . . . . . . Actions | -11 -10 -9 -8 -7 -6 -6 -6 -5 -5 -5 -4 -4 -4 -3 --------- Run | Yrd Mat Mat Mat Fac Fac Was Fac Fac Upp Upp Fac Upp Upp Res Total 7706 | 72 478 604 951 840 958 108 438 753 709 145 199 969 52 430 Wait 792 | . 46 36 112 30 344 5 93 48 15 43 11 . . 9 Move 5988 | 58 361 442 615 640 529 102 286 639 662 100 182 951 52 369 Hop 2 | . . . . . . . . . . . . . . 2 Pick Up 66 | 2 7 11 11 8 7 . 2 4 4 . 1 3 . 6 Fast Attach 94 | 7 2 3 24 15 14 1 3 15 3 . 2 . . 5 Attach 54 | . . 5 7 12 4 . 6 3 4 2 . 2 . 9 Detach 4 | . . . . 1 . . 2 . 1 . . . . . Swap 22 | . 3 10 2 3 4 . . . . . . . . . Drop 65 | . 2 6 16 8 13 . 8 1 . . 1 4 . 6 Fire 585 | 5 56 90 160 118 43 . 30 40 20 . 2 9 . 12 Melee 12 | . . . . . . . . . . . . . . 12 Ram 11 | . . . . . . . 8 3 . . . . . . Kick . | . . . . . . . . . . . . . . . Crush 11 | . 1 1 4 5 . . . . . . . . . . Escape Stasis . | . . . . . . . . . . . . . . . Rewire . | . . . . . . . . . . . . . . . Trap . | . . . . . . . . . . . . . . . Miscellaneous . | . . . . . . . . . . . . . . . Route ------- -11/Scrapyard -10/Materials (discovered 4 exits: *Mat x3 / [*Min]) -9/Materials (discovered 2 exits: *Mat / [*Min]) -8/Materials -7/Factory -6/Factory -6/Waste -6/Factory -5/Factory -5/Upper Caves -5/Upper Caves -4/Factory (discovered 2 exits: Res / [*Upp]) -4/Upper Caves -4/Upper Caves -3/Research History --------- Turn | Location | Event 10 | -11/Scrapyard | Discovered new exit (range 16) 121 | -11/Scrapyard | Entered Materials 318 | -10/Materials | Build established: Mutant 350 | -10/Materials | Discovered new exit (range 7) 409 | -10/Materials | Discovered new exit (range 5) 577 | -10/Materials | Discovered new exit (range 15) 827 | -10/Materials | Discovered new exit (range 8) 1039 | -10/Materials | Entered another Materials area 1039 | -9/Materials | Evolved 2 slots: Propulsion x1, Utility x1 1384 | -9/Materials | Repaired Lgt. Treads 1496 | -9/Materials | Discovered new exit (range 15) 2053 | -9/Materials | Discovered new exit (range 16) 2078 | -9/Materials | Build established: Scavenger-Mutant 2219 | -9/Materials | Entered another Materials area 2219 | -8/Materials | Evolved 2 slots: Propulsion x1, Utility x1 2297 | -8/Materials | Repaired Hvy. Assault Rifle 2323 | -8/Materials | Central database locked down 2413 | -8/Materials | Build established: Mutant 2894 | -8/Materials | Garrison activated, responded to threat 3039 | -8/Materials | System corruption reached 10% 3074 | -8/Materials | Lost 6 parts (1p2n2u1w) 3341 | -8/Materials | Discovered new exit (range 14) 4022 | -8/Materials | Entered Factory 4022 | -7/Factory | Evolved 2 slots: Propulsion x2 4367 | -7/Factory | Repaired Lgt. Cannon 5143 | -7/Factory | Discovered new exit (range 13) 5217 | -7/Factory | Lost 3 parts (1n1u1w) 5499 | -7/Factory | Garrison activated, responded to threat 5532 | -7/Factory | Lost 4 parts (1p1n2u) 5648 | -7/Factory | Core integrity fell below 50% 5704 | -7/Factory | Lost 5 parts (3u2w) 5952 | -7/Factory | Entered another Factory area 5952 | -6/Factory | Evolved 2 slots: Power x1, Propulsion x1 6055 | -6/Factory | Build established: Scavenger-Mutant 6392 | -6/Factory | Repaired Cld. Airjet 6464 | -6/Factory | Repaired Cld. Airjet 6535 | -6/Factory | Repaired Cld. Airjet 6804 | -6/Factory | Sucked down chute 6804 | -6/Factory | Entered Waste 6809 | -6/Waste | Spotted C-40 Crusher 6811 | -6/Waste | Spotted C-40 Crusher 6817 | -6/Waste | Crushed by Compactor (1 part destroyed, 2 dropped) 6819 | -6/Waste | EMP discharged 6821 | -6/Waste | Spotted C-40 Crusher 6821 | -6/Waste | Spotted C-40 Crusher 6821 | -6/Waste | Spotted C-40 Crusher 6829 | -6/Waste | Spotted C-40 Crusher 6832 | -6/Waste | Discovered new exit (range 14) 6835 | -6/Waste | Entered Factory 6909 | -6/Factory | Build established: Scavenger-Sprinter 7044 | -6/Factory | Lost 3 parts (3n) 7165 | -6/Factory | Lost 3 parts (2n1u) 7240 | -6/Factory | Discovered new exit (range 3) 7274 | -6/Factory | Entered another Factory area 7274 | -5/Factory | Evolved 2 slots: Propulsion x1, Weapon x1 7294 | -5/Factory | Build established: Mutant 7601 | -5/Factory | Core integrity fell below 50% 7789 | -5/Factory | Discovered new exit (range 8) 7796 | -5/Factory | Entered Upper Caves 7815 | -5/Upper Caves | Encountered a Warlord checkpoint 7820 | -5/Upper Caves | Learned 12 Factory zone layouts 7928 | -5/Upper Caves | Lost 3 allies 7975 | -5/Upper Caves | Attracted the attention of an 0b10 checkpoint 7988 | -5/Upper Caves | Core integrity fell below 20% 8007 | -5/Upper Caves | Learned location of Warlord (-4) 8013 | -5/Upper Caves | Lost 3 parts (1p2n) 8220 | -5/Upper Caves | Attracted the attention of an 0b10 outpost 8320 | -5/Upper Caves | Discovered new exit (range 16) 8351 | -5/Upper Caves | Entered another Upper Caves area 8484 | -5/Upper Caves | Discovered new exit (range 9) 8512 | -5/Upper Caves | Entered Factory 8512 | -4/Factory | Evolved 2 slots: Utility x2 8513 | -4/Factory | Identified exit to Research 8576 | -4/Factory | Discovered new exit (range 5) 8822 | -4/Factory | Entered Upper Caves 8858 | -4/Upper Caves | Attracted the attention of an 0b10 checkpoint 8905 | -4/Upper Caves | Lost 8 parts (2n3u3w) 8915 | -4/Upper Caves | Encountered a Warlord checkpoint 8934 | -4/Upper Caves | Entered a destroyed Warlord outpost 9004 | -4/Upper Caves | Attracted the attention of an 0b10 base 9121 | -4/Upper Caves | Learned location of Testing (-3) 9190 | -4/Upper Caves | Learned Research security intel 9252 | -4/Upper Caves | Core integrity fell below 50% 9338 | -4/Upper Caves | Discovered new exit (range 14) 9347 | -4/Upper Caves | Entered another Upper Caves area 9353 | -4/Upper Caves | Discovered exit to Research (range 8) 9371 | -4/Upper Caves | Core integrity fell below 20% 9374 | -4/Upper Caves | Entered Research 9374 | -3/Research | Evolved 2 slots: Propulsion x1, Weapon x1 9646 | -3/Research | Core integrity fell below 50% 9668 | -3/Research | Lost 3 parts (1p1u1w) 9728 | -3/Research | Core integrity fell below 20% 9772 | -3/Research | System corruption reached 10% 9785 | -3/Research | Destroyed by P-80 Master with Gamma Rifle Last Messages --------------- 09760_ Slug penetrates P-80 Master. 09761_ K-01 Serf collects debris. 09763_ Penetrated by Slug. 09763_ Slug penetrates Wall. 09765_ Penetrated by Slug. 09766_ Slug penetrates P-80 Master. 09767_ P-80 Master resets R-10 Processor, system corruption cleaned. 09769_ System corrupted: Heat flow error (+286). 09769_ Dropped Enh. Force Lance. 09769_ Penetrated by Slug. 09773_ P-80 Master resets R-10 Processor, system corruption cleaned. 09775_ Wheel destroyed. 09779_ Penetrated by Slug. 09781_ R-10 Processor destroyed. 09783_ O-32 Director: "IFF HANDSHAKE FAILED. SECURING TERMINAL." 09784_ O-32 Director uses terminal to summon reinforcements. 09784_ ALERT: Hostiles spotted, dispatching reinforcements to Terminal R004. 09784_ O-32 Director locks terminal. 09784_ Slug penetrates Wall. Map ----- +----------------------------------------------------+ | ?????????????????????????????????????????????????? | | ?????????????????????????????????????????????????? | | ?????????????????????????????????????????????????? | | ?????????????????????????????????????????????????? | | ?????????????????????????????????????????????????? | | ?????????????????????????????????????????????????? | | ?????????????????????????????????????????????????? | | ?????????????????????????????????????????????????? | | ?????????????????????????????????????????????????? | | ?????????????????????????????????????????????????? | | ?????????????????????????????????????????????????? | | ?????????????????????????????????????????????????? | | ?????????????????????????????????????????????????? | | ?????????????????????????????????????????????????? | | ?????????????????????????????????????????????????? | | ???????????????????????######################????? | | ???????????????????????# """"" ## #????? | | ???????????????????????# ""T"" ## #????? | | ???????????????????????# ## """ #????? | | ???????????????????????# ## """ #????? | | ???????????????????????# ## """ #????? | | ???????????????????????# ?# = #????? | | ???????????????????????# = ???# % ! #????? | | ???????????????????????? ?????# !! #????? | | ?????????????????##+######+############"+######+## | | ?????????? =!= @ /p * | | ???????????????# ==%=* p | | ???????????????# =[= h | | ???????????????# ! w h | | ???????????????#+####### ################### #### | | ???????????????????????# #?????????????#####+#### | | ???????????????????????# #?????????????# | | ???????????????????????# #?????????????# | | ???????????????????????# #?????????????# | | ???????????????????????# ??????????????# " "" | | ???????????????????????# ??????????????# "R"" | | ???????????????????????# ??????????????# """ | | ??????????????????????? ??????????????# | | ??????????????????????? ??????????????# | | ???????????????????????###??????????????#######+## | | ???????????????????????????????????????####### | | ???????????????????????????????????????# | | ???????????????????????????????????????# ######### | | ???????????????????????????????????????# #???????? | | ????????????????????????????????????####+######### | | ????????????????????????????????????# | | ????????????????????????????????????# !!! | | ????????????????????????????????????# ! ! | | ????????????????????????????????????# ! | | ????????????????????????????????????# | +----------------------------------------------------+ Best States ------------- Heat Dissipation 62 Energy Generation 32 Energy Capacity 540 Matter Stores 300 Matter Capacity 300 Sight Range 16 Terrain Scan Density 10 ECM Strength 2 Armor Coverage 450 Resistance: KI 20 Core Shielding 20 Utility Shielding 33 Phase Shifting 5 Evasion (%) 63 Recoil Reduction 4 Item Schematics ----------------- None Robot Schematics ------------------ None Fabricated ------------ Nothing Repaired ---------- Lgt. Treads | 14% | -9/Materials Hvy. Assault Rifle | 15% | -8/Materials Lgt. Cannon | 8% | -7/Factory Cld. Airjet | 24% | -6/Factory Cld. Airjet | 41% | -6/Factory Cld. Airjet | 64% | -6/Factory Studied --------- Lgt. Treads | -8/Materials | Hacked Imp. Treads | -8/Materials | Hacked Alien Tech Used ----------------- None Achievements -------------- Streaker Challenges ------------ None Game ------ Seed BackupWeightVibroblade Manual? 0 Play Time 01:07:44 Cumulative 67.7 hours Start 2026.07.01 @ 03:29:21 End 2026.07.01 @ 04:37:05 Sessions 1 Manual Loads 0 Difficulty Rogue Special Mode None Game No. 141 Rogue 141 Adventurer 0 Explorer 0 Win Type - Total 0 Types 0/0/0/0/0/0/0/0/0/0 Lore% 31 Gallery% 30 Achievement% 26 Wizard Run 0 Options --------- Layout 0 ASCII 0 Keyboard 0 Movement Mouse Keybinds 0 Fullscreen 2 Font 24/Smallcaps Map View 76x50 Zoom Use 0% Tactical HUD 1 Map Filters NONE Filters NONE Steam 1 RUN: 70c75323-00cc-4361-88e4-57d24771a3e6